fUST/lending_fUST_20250206
["ID","MTS","AMOUNT","RATE_DAILY","PERIOD"]
[351738780,1738771850011,-500.0,0.00015391,2]
[351738781,1738771850020,-301.5802272,0.00015391,2]
[351738782,1738771850030,-500.0,0.00015391,2]
[351738783,1738771850039,-633.98,0.00015391,2]
[351738784,1738771850048,-151.0,0.00015391,2]
[351738785,1738771850057,-500.0,0.00015391,2]
[351738786,1738771850070,-500.0,0.00015391,2]
[351738787,1738771850079,-578.61075515,0.00015391,2]
[351738788,1738771850089,-176.29711112,0.00015391,2]
[351738789,1738771850098,-151.0,0.00015391,2]
[351738790,1738771850106,-500.0,0.00015391,2]
[351738791,1738771850114,-515.34,0.00015391,2]
[351738792,1738771850123,-500.0,0.00015391,2]
[351738793,1738771850133,-500.0,0.00015391,2]
[351738794,1738771850143,-151.0,0.00015391,2]
[351738795,1738771850152,-151.0,0.00015391,2]
[351738796,1738771850162,-151.0,0.00015391,2]
[351738797,1738771850171,-151.0,0.00015392,2]
[351738798,1738771850180,-151.0,0.00015392,2]
[351738799,1738771850189,-151.0,0.00015392,2]
[351738800,1738771850199,-151.0,0.00015392,2]
[351738801,1738771850209,-151.0,0.00015392,2]
[351738802,1738771850218,-151.0,0.00015392,2]
[351738803,1738771850228,-293.426502,0.00015392,2]
[351738804,1738771850239,-500.0,0.00015393,2]
[351738805,1738771850248,-500.0,0.00015393,2]
[351738806,1738771850259,-500.0,0.00015393,2]
[351738807,1738771850270,-500.0,0.00015393,2]
[351738808,1738771850279,-258.04547225,0.00015393,2]
[351738809,1738771850289,-436.66818008,0.00015393,2]
[351738810,1738771850299,-500.0,0.00015393,2]
[351738811,1738771850309,-151.0,0.00015393,2]
[351738812,1738771850319,-178.71540539,0.00015393,2]
[351738813,1738771850329,-243.96945757,0.00015393,2]
[351738814,1738771850339,-500.0,0.00015393,2]
[351738815,1738771850349,-500.0,0.00015393,2]
[351738816,1738771850359,-500.0,0.00015393,2]
[351738817,1738771850371,-500.0,0.00015393,2]
[351738818,1738771850380,-151.0,0.00015393,2]
[351738819,1738771850390,-151.0,0.00015393,2]
[351738820,1738771850400,-151.0,0.00015393,2]
[351738821,1738771850410,-500.0,0.00015393,2]
[351738822,1738771850420,-596.81604726,0.00015393,2]
[351738823,1738771850429,-151.0,0.00015393,2]
[351738824,1738771850439,-223.076094,0.00015393,2]
[351738825,1738771850449,-223.076094,0.00015393,2]
[351738826,1738771850459,-446.670993,0.00015393,2]
[351738827,1738771850469,-446.670993,0.00015393,2]
[351738828,1738771850478,-635.96,0.00015393,2]
[351738829,1738771850488,-523.98,0.00015393,2]
[351738830,1738771850498,-616.12,0.00015393,2]
[351738832,1738771850507,-859.12,0.00015393,2]
[351738834,1738771850517,-500.0,0.00015393,2]
[351738836,1738771850527,-3871.76,0.00015393,2]
[351738838,1738771850536,-1316.93,0.00015393,2]
[351738840,1738771850546,-151.0,0.00015394,2]
[351738842,1738771850557,-151.0,0.00015394,2]
[351738844,1738771850570,-151.0,0.00015394,2]
[351738846,1738771850580,-151.0,0.00015394,2]
[351738848,1738771850589,-151.0,0.00015394,2]
[351738850,1738771850599,-151.0,0.00015394,2]
[351738852,1738771850610,-151.0,0.00015394,2]
[351738854,1738771850620,-151.0,0.00015394,2]
[351738856,1738771850630,-292.679256,0.00015394,2]
[351738858,1738771850639,-232.80063,0.00015395,2]
[351738860,1738771850649,-151.0,0.00015396,2]
[351738862,1738771850659,-151.0,0.000154,2]
[351738864,1738771850669,-151.0,0.000154,2]
[351738866,1738771850678,-151.0,0.000154,2]
[351738868,1738771850688,-239.0,0.00015406,2]
[351738870,1738771850698,-239.0,0.00015406,2]
[351738872,1738771850707,-239.0,0.00015406,2]
[351738873,1738771850716,-239.0,0.00015406,2]
[351738875,1738771850726,-239.0,0.00015406,2]
[351738878,1738771850737,-239.0,0.00015406,2]
[351738879,1738771850747,-239.0,0.00015406,2]
[351738881,1738771850756,-239.0,0.00015406,2]
[351738883,1738771850766,-239.0,0.00015406,2]
[351738885,1738771850776,-239.0,0.00015406,2]
[351738887,1738771850785,-239.0,0.00015406,2]
[351738889,1738771850795,-239.0,0.00015406,2]
[351738891,1738771850806,-239.0,0.00015406,2]
[351738893,1738771850819,-239.0,0.00015406,2]
[351738895,1738771850828,-262.0,0.00015406,2]
[351738897,1738771850838,-262.0,0.00015406,2]
[351738899,1738771850847,-262.0,0.00015406,2]
[351738901,1738771850857,-262.0,0.00015406,2]
[351738903,1738771850867,-262.0,0.00015406,2]
[351738905,1738771850877,-262.0,0.00015406,2]
[351738907,1738771850887,-262.0,0.00015406,2]
[351738909,1738771850897,-262.0,0.00015406,2]
[351738911,1738771850907,-262.0,0.00015406,2]
[351738913,1738771850917,-262.0,0.00015406,2]
[351738915,1738771850927,-262.0,0.00015406,2]
[351738917,1738771850936,-262.0,0.00015406,2]
[351738919,1738771850946,-262.0,0.00015406,2]
[351738921,1738771850955,-262.0,0.00015406,2]
[351738923,1738771850965,-238.0,0.00015406,2]
[351738937,1738771851094,-238.0,0.00015406,2]
[351738939,1738771851105,-238.0,0.00015406,2]
[351738941,1738771851115,-238.0,0.00015406,2]
[351738943,1738771851125,-238.0,0.00015406,2]
[351738945,1738771851135,-238.0,0.00015406,2]
[351738947,1738771851144,-238.0,0.00015406,2]
[351738949,1738771851154,-238.0,0.00015406,2]
[351738951,1738771851164,-238.0,0.00015406,2]
[351738953,1738771851174,-238.0,0.00015406,2]
[351738955,1738771851183,-238.0,0.00015406,2]
[351738957,1738771851193,-238.0,0.00015406,2]
[351738959,1738771851203,-238.0,0.00015406,2]
[351738960,1738771851212,-238.0,0.00015406,2]
[351738962,1738771851222,-262.0,0.00015406,2]
[351738964,1738771851232,-262.0,0.00015406,2]
[351738966,1738771851243,-262.0,0.00015406,2]
[351738968,1738771851253,-262.0,0.00015406,2]
[351738971,1738771851264,-262.0,0.00015406,2]
[351738972,1738771851274,-262.0,0.00015406,2]
[351738974,1738771851283,-262.0,0.00015406,2]
[351738976,1738771851293,-262.0,0.00015406,2]
[351738978,1738771851305,-262.0,0.00015406,2]
[351738979,1738771851317,-262.0,0.00015406,2]
[351738980,1738771851326,-262.0,0.00015406,2]
[351738981,1738771851335,-262.0,0.00015406,2]
[351738982,1738771851344,-262.0,0.00015406,2]
[351738983,1738771851353,-262.0,0.00015406,2]
[351738984,1738771851362,-239.0,0.00015406,2]
[351738985,1738771851372,-239.0,0.00015406,2]
[351738986,1738771851383,-239.0,0.00015406,2]
[351738987,1738771851393,-239.0,0.00015406,2]
[351738988,1738771851402,-239.0,0.00015406,2]
[351738989,1738771851411,-239.0,0.00015406,2]
[351738990,1738771851421,-239.0,0.00015406,2]
[351738991,1738771851430,-239.0,0.00015406,2]
[351738992,1738771851439,-239.0,0.00015406,2]
[351738993,1738771851448,-239.0,0.00015406,2]
[351738994,1738771851459,-239.0,0.00015406,2]
[351738995,1738771851469,-239.0,0.00015406,2]
[351738996,1738771851479,-239.0,0.00015406,2]
[351738997,1738771851489,-239.0,0.00015406,2]
[351738998,1738771851498,-262.0,0.00015406,2]
[351738999,1738771851508,-262.0,0.00015406,2]
[351739001,1738771851517,-262.0,0.00015406,2]
[351739003,1738771851527,-262.0,0.00015406,2]
[351739005,1738771851537,-262.0,0.00015406,2]
[351739007,1738771851546,-262.0,0.00015406,2]
[351739009,1738771851556,-262.0,0.00015406,2]
[351739011,1738771851569,-262.0,0.00015406,2]
[351739014,1738771851580,-262.0,0.00015406,2]
[351739015,1738771851589,-262.0,0.00015406,2]
[351739018,1738771851599,-262.0,0.00015406,2]
[351739019,1738771851609,-262.0,0.00015406,2]
[351739021,1738771851619,-262.0,0.00015406,2]
[351739023,1738771851629,-262.0,0.00015406,2]
[351739025,1738771851639,-238.0,0.00015406,2]
[351739027,1738771851649,-238.0,0.00015406,2]
[351739029,1738771851659,-238.0,0.00015406,2]
[351739032,1738771851671,-238.0,0.00015406,2]
[351739033,1738771851682,-238.0,0.00015406,2]
[351739035,1738771851692,-238.0,0.00015406,2]
[351739037,1738771851701,-238.0,0.00015406,2]
[351739039,1738771851711,-238.0,0.00015406,2]
[351739041,1738771851720,-238.0,0.00015406,2]
[351739043,1738771851730,-238.0,0.00015406,2]
[351739045,1738771851739,-238.0,0.00015406,2]
[351739047,1738771851748,-238.0,0.00015406,2]
[351739049,1738771851758,-238.0,0.00015406,2]
[351739051,1738771851767,-238.0,0.00015406,2]
[351739053,1738771851777,-262.0,0.00015406,2]
[351739055,1738771851787,-262.0,0.00015406,2]
[351739057,1738771851796,-262.0,0.00015406,2]
[351739059,1738771851806,-262.0,0.00015406,2]
[351739061,1738771851817,-262.0,0.00015406,2]
[351739063,1738771851827,-262.0,0.00015406,2]
[351739065,1738771851836,-262.0,0.00015406,2]
[351739067,1738771851846,-262.0,0.00015406,2]
[351739069,1738771851855,-262.0,0.00015406,2]
[351739071,1738771851865,-262.0,0.00015406,2]
[351739073,1738771851875,-262.0,0.00015406,2]
[351739075,1738771851884,-262.0,0.00015406,2]
[351739077,1738771851894,-262.0,0.00015406,2]
[351739079,1738771851904,-262.0,0.00015406,2]
[351739081,1738771851913,-200.01090138,0.0001544,2]
[351739083,1738771851923,-239.0,0.00015465,2]
[351739085,1738771851933,-239.0,0.00015465,2]
[351739087,1738771851942,-239.0,0.00015465,2]
[351739089,1738771851951,-239.0,0.00015465,2]
[351739091,1738771851960,-239.0,0.00015465,2]
[351739093,1738771851969,-239.0,0.00015465,2]
[351739095,1738771851979,-239.0,0.00015465,2]
[351739097,1738771851988,-239.0,0.00015465,2]
[351739099,1738771851998,-239.0,0.00015465,2]
[351739101,1738771852007,-239.0,0.00015465,2]
[351739103,1738771852017,-239.0,0.00015465,2]
[351739105,1738771852027,-239.0,0.00015465,2]
[351739107,1738771852037,-239.0,0.00015465,2]
[351739109,1738771852047,-262.0,0.00015465,2]
[351739111,1738771852057,-262.0,0.00015465,2]
[351739113,1738771852069,-262.0,0.00015465,2]
[351739115,1738771852079,-262.0,0.00015465,2]
[351739117,1738771852089,-262.0,0.00015465,2]
[351739119,1738771852099,-262.0,0.00015465,2]
[351739121,1738771852109,-262.0,0.00015465,2]
[351739123,1738771852118,-262.0,0.00015465,2]
[351739125,1738771852128,-262.0,0.00015465,2]
[351739128,1738771852138,-262.0,0.00015465,2]
[351739129,1738771852147,-262.0,0.00015465,2]
[351739131,1738771852157,-262.0,0.00015465,2]
[351739133,1738771852166,-262.0,0.00015465,2]
[351739135,1738771852176,-239.0,0.00015465,2]
[351739137,1738771852187,-239.0,0.00015465,2]
[351739139,1738771852196,-239.0,0.00015465,2]
[351739141,1738771852205,-239.0,0.00015465,2]
[351739144,1738771852216,-239.0,0.00015465,2]
[351739145,1738771852226,-239.0,0.00015465,2]
[351739147,1738771852235,-239.0,0.00015465,2]
[351739149,1738771852244,-239.0,0.00015465,2]
[351739151,1738771852254,-239.0,0.00015465,2]
[351739154,1738771852264,-239.0,0.00015465,2]
[351739156,1738771852274,-239.0,0.00015465,2]
[351739157,1738771852283,-239.0,0.00015465,2]
[351739159,1738771852293,-239.0,0.00015465,2]
[351739162,1738771852303,-239.0,0.00015465,2]
[351739164,1738771852312,-262.0,0.00015465,2]
[351739165,1738771852327,-262.0,0.00015465,2]
[351739168,1738771852337,-262.0,0.00015465,2]
[351739169,1738771852347,-262.0,0.00015465,2]
[351739171,1738771852357,-262.0,0.00015465,2]
[351739174,1738771852371,-262.0,0.00015465,2]
[351739175,1738771852382,-262.0,0.00015465,2]
[351739177,1738771852392,-262.0,0.00015465,2]
[351739179,1738771852402,-262.0,0.00015465,2]
[351739181,1738771852412,-262.0,0.00015465,2]
[351739183,1738771852422,-262.0,0.00015465,2]
[351739185,1738771852432,-262.0,0.00015465,2]
[351739188,1738771852442,-262.0,0.00015465,2]
[351739190,1738771852452,-262.0,0.00015465,2]
[351739192,1738771852463,-223.076094,0.00015477,2]
[351739194,1738771852474,-223.076094,0.00015477,2]
[351739196,1738771852484,-446.670993,0.00015477,2]
[351739198,1738771852495,-446.670993,0.00015477,2]
[351739200,1738771852506,-8570.06783863,0.000155,2]
[351739203,1738771852531,-674.62973335,0.000155,2]
[351739293,1738771853459,-506.06236576,0.00015251,2]
[351739298,1738771853493,-99.59763424,0.00015251,2]
[351739300,1738771853503,-500.0,0.00015251,2]
[351739302,1738771853513,-432.97258168,0.00015253,2]
[351739316,1738771853651,-586.22,0.00015249,2]
[351739318,1738771853661,-500.0,0.00015251,2]
[351739320,1738771853671,-500.0,0.00015251,2]
[351739322,1738771853681,-139.45741832,0.00015253,2]
[351739324,1738771853691,-5734.65053563,0.000155,2]
[351739351,1738771853943,-500.0,0.00015251,2]
[351739353,1738771853953,-500.0,0.00015251,2]
[351739355,1738771853964,-8785.2,0.000155,2]
[351739358,1738771853976,-30951.14607428,0.000155,2]
[351739360,1738771853985,-151.0,0.000155,2]
[351739362,1738771853994,-151.0,0.000155,2]
[351739364,1738771854003,-151.0,0.000155,2]
[351739366,1738771854013,-221.304568,0.000155,2]
[351739368,1738771854023,-151.0,0.000155,2]
[351739370,1738771854032,-151.0,0.000155,2]
[351739371,1738771854041,-151.0,0.00015521,2]
[351739374,1738771854051,-175.451883,0.00015521,2]
[351739376,1738771854061,-151.0,0.00015521,2]
[351739378,1738771854074,-151.0,0.00015521,2]
[351739380,1738771854083,-512.14,0.00015523,2]
[351739382,1738771854093,-500.0,0.00015523,2]
[351739384,1738771854103,-594.59,0.00015523,2]
[351739386,1738771854113,-6593.34,0.00015523,2]
[351739388,1738771854123,-3584.4,0.00015523,2]
[351739390,1738771854132,-2230.95,0.00015523,2]
[351739392,1738771854143,-1359.93,0.00015523,2]
[351739394,1738771854153,-1472.35,0.00015523,2]
[351739396,1738771854163,-500.0,0.00015523,2]
[351739398,1738771854173,-1147.83,0.00015523,2]
[351739400,1738771854183,-216.78894405,0.00015523,2]
[351741400,1738772115430,191.667498,0.00013699,2]
[351741402,1738772126752,160.0,0.00014907,5]
[351741403,1738772129734,10346.87413246,0.00015012,2]
[351741405,1738772473288,314.197292,0.00013973,2]
[351741424,1738772893159,24900.0,0.00014151,2]
[351741442,1738772991594,192.838399,0.00013699,2]
[351741473,1738773032898,-161.13308677,0.00015049,2]
[351741475,1738773032908,-229.3887453,0.00015052,2]
[351741476,1738773032971,-70.6112547,0.00015052,2]
[351741477,1738773032980,-500.0,0.00015052,2]
[351741478,1738773032990,-795.36,0.00015052,2]
[351741479,1738773033005,-500.0,0.00015052,2]
[351741480,1738773033015,-500.0,0.00015052,2]
[351741481,1738773033026,-1843.79321757,0.00015053,2]
[351741482,1738773033039,-293.597,0.00015053,2]
[351741512,1738773038686,-500.0,0.00015052,2]
[351741513,1738773038695,-32581.52779643,0.00015053,2]
[351741514,1738773038705,-500.0,0.00015149,2]
[351741515,1738773038715,-15616.49,0.00015149,2]
[351741516,1738773038725,-500.0,0.00015149,2]
[351741518,1738773038736,-545.04,0.00015149,2]
[351741520,1738773038745,-500.0,0.00015149,2]
[351741522,1738773038757,-7700.72,0.00015149,2]
[351741524,1738773038766,-6043.89,0.00015149,2]
[351741526,1738773038776,-500.0,0.00015149,2]
[351741527,1738773038786,-3285.7,0.00015149,2]
[351741529,1738773038795,-500.0,0.00015149,2]
[351741531,1738773038809,-2745.45,0.00015149,2]
[351741534,1738773038822,-500.76561699,0.00015149,2]
[351741535,1738773038835,-1210.11,0.00015149,2]
[351741539,1738773038847,-588.17,0.00015149,2]
[351741540,1738773038857,-500.0,0.00015149,2]
[351741543,1738773038870,-1109.99,0.00015149,2]
[351741544,1738773038880,-500.0,0.00015149,2]
[351741546,1738773038891,-500.0,0.00015149,2]
[351741548,1738773038901,-956.66,0.00015149,2]
[351741550,1738773038912,-500.0,0.00015149,2]
[351741552,1738773038922,-2920.16,0.00015149,2]
[351741554,1738773038933,-2788.74,0.00015149,2]
[351741556,1738773038943,-7309.33,0.00015149,2]
[351741558,1738773038953,-500.0,0.00015149,2]
[351741560,1738773038962,-500.0,0.00015149,2]
[351741562,1738773038971,-500.0,0.00015149,2]
[351741564,1738773038982,-500.0,0.00015149,2]
[351741566,1738773038992,-228.64234668,0.00015149,2]
[351741568,1738773039001,-473.99506626,0.00015149,2]
[351741570,1738773039013,-500.0,0.00015149,2]
[351741572,1738773039023,-566.31,0.00015149,2]
[351741574,1738773039031,-2542.2,0.00015149,2]
[351741576,1738773039041,-5429.8,0.00015149,2]
[351741578,1738773039051,-1246.6,0.00015149,2]
[351741580,1738773039061,-2045.04,0.00015149,2]
[351741582,1738773039070,-612.11,0.00015149,2]
[351741584,1738773039080,-500.0,0.00015149,2]
[351741586,1738773039090,-755.32,0.00015149,2]
[351741588,1738773039100,-2806.27,0.00015149,2]
[351741590,1738773039110,-500.0,0.00015149,2]
[351741592,1738773039119,-1052.17,0.00015149,2]
[351741594,1738773039128,-3151.99,0.00015149,2]
[351741596,1738773039138,-500.0,0.00015149,2]
[351741598,1738773039147,-8572.0,0.00015149,2]
[351741599,1738773039157,-500.0,0.00015149,2]
[351741601,1738773039166,-3790.77,0.00015149,2]
[351741603,1738773039176,-1399.08,0.00015149,2]
[351741606,1738773039187,-500.0,0.00015149,2]
[351741608,1738773039196,-723.38,0.00015149,2]
[351741609,1738773039206,-3099.48,0.00015149,2]
[351741611,1738773039215,-413.40817577,0.00015149,2]
[351741613,1738773039225,-500.0,0.00015149,2]
[351741615,1738773039235,-500.0,0.00015149,2]
[351741617,1738773039245,-500.0,0.00015149,2]
[351741619,1738773039258,-500.0,0.00015149,2]
[351741621,1738773039269,-173.75041786,0.00015149,2]
[351741623,1738773039279,-764.86,0.00015149,2]
[351741625,1738773039288,-500.0,0.00015149,2]
[351741627,1738773039298,-2891.87,0.00015149,2]
[351741629,1738773039308,-9131.21,0.00015149,2]
[351741630,1738773039318,-579.56,0.00015149,2]
[351741632,1738773039328,-4087.23,0.00015149,2]
[351741634,1738773039338,-768.4,0.00015149,2]
[351741636,1738773039348,-692.17,0.00015149,2]
[351741638,1738773039357,-500.0,0.00015149,2]
[351741640,1738773039367,-500.0,0.0001515,2]
[351741642,1738773039377,-536.03,0.0001515,2]
[351741644,1738773039387,-504.85244676,0.0001515,2]
[351741646,1738773039398,-500.0,0.0001515,2]
[351741648,1738773039407,-500.0,0.0001515,2]
[351741650,1738773039417,-1146.92,0.0001515,2]
[351741652,1738773039425,-3247.68,0.0001515,2]
[351741654,1738773039435,-500.0,0.0001515,2]
[351741656,1738773039445,-500.0,0.0001515,2]
[351741658,1738773039455,-530.16,0.0001515,2]
[351741660,1738773039464,-500.0,0.0001515,2]
[351741662,1738773039474,-500.0,0.0001515,2]
[351741664,1738773039485,-501.66496697,0.0001515,2]
[351741665,1738773039494,-586.55,0.0001515,2]
[351741667,1738773039508,-2097.91,0.0001515,2]
[351741669,1738773039519,-1056.72,0.0001515,2]
[351741671,1738773039528,-548.66,0.0001515,2]
[351741673,1738773039537,-500.0,0.0001515,2]
[351741675,1738773039548,-1585.19,0.0001515,2]
[351741676,1738773039558,-500.0,0.0001515,2]
[351741678,1738773039568,-1492.83,0.0001515,2]
[351741680,1738773039578,-500.0,0.0001515,2]
[351741682,1738773039588,-672.6,0.0001515,2]
[351741684,1738773039599,-926.29,0.0001515,2]
[351741686,1738773039609,-500.0,0.0001515,2]
[351741688,1738773039620,-500.0,0.0001515,2]
[351741690,1738773039630,-1755.98,0.0001515,2]
[351741707,1738773039808,-1162.4,0.0001515,2]
[351741709,1738773039820,-1584.73,0.0001515,2]
[351741711,1738773039830,-848.5,0.0001515,2]
[351741714,1738773039840,-500.0,0.0001515,2]
[351741716,1738773039850,-500.0,0.0001515,2]
[351741717,1738773039859,-500.0,0.0001515,2]
[351741719,1738773039869,-1555.15,0.0001515,2]
[351741722,1738773039880,-500.0,0.0001515,2]
[351741723,1738773039890,-1672.48,0.0001515,2]
[351741726,1738773039900,-500.0,0.0001515,2]
[351741728,1738773039910,-1080.09,0.0001515,2]
[351741730,1738773039920,-500.0,0.0001515,2]
[351741731,1738773039930,-2016.92,0.0001515,2]
[351741733,1738773039940,-538.45,0.0001515,2]
[351741735,1738773039950,-500.0,0.0001515,2]
[351741737,1738773039960,-1154.14,0.0001515,2]
[351741740,1738773039972,-2598.05,0.0001515,2]
[351741741,1738773039982,-417.94869087,0.0001515,2]
[351741743,1738773039991,-1010.65,0.0001515,2]
[351741745,1738773040001,-500.0,0.0001515,2]
[351741748,1738773040015,-500.0,0.0001515,2]
[351741749,1738773040026,-1352.04,0.0001515,2]
[351741751,1738773040036,-500.0,0.0001515,2]
[351741754,1738773040047,-500.0,0.0001515,2]
[351741756,1738773040058,-500.0,0.0001515,2]
[351741758,1738773040068,-514.21875713,0.0001515,2]
[351741760,1738773040078,-500.0,0.0001515,2]
[351741761,1738773040088,-639.24,0.0001515,2]
[351741763,1738773040099,-500.0,0.0001515,2]
[351741765,1738773040109,-500.0,0.0001515,2]
[351741768,1738773040119,-500.0,0.0001515,2]
[351741770,1738773040129,-500.0,0.0001515,2]
[351741772,1738773040139,-751.11,0.0001515,2]
[351741773,1738773040148,-500.0,0.0001515,2]
[351741775,1738773040157,-178.00689569,0.0001515,2]
[351741777,1738773040167,-500.0,0.0001515,2]
[351741779,1738773040176,-500.0,0.0001515,2]
[351741781,1738773040186,-500.0,0.0001515,2]
[351741783,1738773040196,-817.95,0.0001515,2]
[351741785,1738773040206,-1003.56,0.0001515,2]
[351741787,1738773040217,-3401.58,0.0001515,2]
[351741789,1738773040226,-500.0,0.0001515,2]
[351741791,1738773040236,-500.0,0.0001515,2]
[351741793,1738773040247,-687.68,0.0001515,2]
[351741796,1738773040261,-500.0,0.0001515,2]
[351741797,1738773040273,-8549.77,0.0001515,2]
[351741800,1738773040289,-500.0,0.0001515,2]
[351741801,1738773040306,-500.0,0.0001515,2]
[351741804,1738773040318,-500.0,0.0001515,2]
[351741808,1738773040332,-500.0,0.0001515,2]
[351741810,1738773040342,-1581.9,0.0001515,2]
[351741812,1738773040353,-500.0,0.0001515,2]
[351741814,1738773040363,-500.0,0.0001515,2]
[351741816,1738773040373,-500.0,0.0001515,2]
[351741818,1738773040383,-603.69,0.0001515,2]
[351741820,1738773040393,-3079.8,0.0001515,2]
[351741822,1738773040403,-500.0,0.0001515,2]
[351741824,1738773040412,-500.0,0.0001515,2]
[351741826,1738773040422,-1740.6,0.0001515,2]
[351741828,1738773040432,-40551.9,0.0001515,2]
[351741830,1738773040442,-1474.86,0.0001515,2]
[351741832,1738773040452,-1207.92,0.0001515,2]
[351741834,1738773040463,-500.0,0.0001515,2]
[351741836,1738773040472,-5627.83,0.0001515,2]
[351741838,1738773040482,-558.47,0.0001515,2]
[351741840,1738773040492,-670.4,0.0001515,2]
[351741842,1738773040502,-742.19,0.0001515,2]
[351741844,1738773040518,-500.0,0.0001515,2]
[351741846,1738773040527,-2659.05,0.0001515,2]
[351741848,1738773040538,-500.0,0.0001515,2]
[351741850,1738773040548,-500.0,0.0001515,2]
[351741852,1738773040559,-1719.77,0.0001515,2]
[351741854,1738773040569,-669.88,0.0001515,2]
[351741856,1738773040579,-2820.32,0.0001515,2]
[351741858,1738773040588,-500.0,0.0001515,2]
[351741860,1738773040598,-500.0,0.0001515,2]
[351741862,1738773040607,-1030.21,0.0001515,2]
[351741864,1738773040617,-522.53,0.0001515,2]
[351741866,1738773040627,-121705.47,0.0001515,2]
[351741868,1738773040637,-500.0,0.0001515,2]
[351741869,1738773040648,-500.0,0.0001515,2]
[351741872,1738773040659,-500.0,0.0001515,2]
[351741874,1738773040669,-5066.08,0.0001515,2]
[351741876,1738773040679,-500.0,0.0001515,2]
[351741877,1738773040690,-634.22,0.0001515,2]
[351741879,1738773040700,-500.0,0.0001515,2]
[351741881,1738773040715,-3054.71,0.0001515,2]
[351741884,1738773040726,-606.85,0.0001515,2]
[351741885,1738773040736,-500.0,0.0001515,2]
[351741887,1738773040746,-500.0,0.0001515,2]
[351741889,1738773040760,-326.52367571,0.0001515,2]
[351741892,1738773040771,-500.0,0.0001515,2]
[351741893,1738773040780,-795.12,0.0001515,2]
[351741896,1738773040793,-264.22260139,0.0001515,2]
[351741897,1738773040804,-637.14,0.0001515,2]
[351741900,1738773040814,-500.0,0.0001515,2]
[351741901,1738773040824,-500.0,0.0001515,2]
[351741903,1738773040834,-34824.4,0.0001515,2]
[351741905,1738773040844,-500.0,0.0001515,2]
[351741907,1738773040853,-500.0,0.0001515,2]
[351741910,1738773040863,-500.0,0.0001515,2]
[351741911,1738773040873,-500.0,0.0001515,2]
[351741914,1738773040883,-2959.07,0.0001515,2]
[351741916,1738773040894,-500.0,0.0001515,2]
[351741918,1738773040904,-500.0,0.0001515,2]
[351741920,1738773040914,-500.0,0.0001515,2]
[351741922,1738773040924,-859.9,0.0001515,2]
[351741924,1738773040934,-500.0,0.0001515,2]
[351741926,1738773040943,-500.0,0.0001515,2]
[351741928,1738773040953,-500.0,0.00015151,2]
[351741930,1738773040962,-500.0,0.00015151,2]
[351741932,1738773040972,-500.0,0.00015151,2]
[351741934,1738773040982,-500.0,0.00015151,2]
[351741936,1738773040991,-500.0,0.00015151,2]
[351741938,1738773041001,-500.0,0.00015151,2]